[Event "Early-Titled-Tuesday-Blitz-February-06-2024"]
[Site "Chess.com"]
[Date "2024.02.06"]
[Round "10"]
[White "bylavochka"]
[Black "HeroWilczek"]
[Result "1-0"]
[WhiteElo "2342"]
[BlackElo "2470"]
[TimeControl "180+1"]
[EndTime "9:56:17 PST"]
[Termination "bylavochka won by resignation"]

1. e4 {[%clk 0:03:00.9]} 1... d5 {[%clk 0:02:59]} 2. exd5 {[%clk 0:03:00.9]}
2... Nf6 {[%clk 0:02:59.5]} 3. d4 {[%clk 0:03:00.6]} 3... Bg4 {[%clk 0:02:59.8]}
4. f3 {[%clk 0:03:00.2]} 4... Bf5 {[%clk 0:02:59.9]} 5. Bb5+ {[%clk 0:02:58.8]}
5... Nbd7 {[%clk 0:02:59.7]} 6. Ne2 {[%clk 0:02:59.1]} 6... a6 {[%clk
0:03:00.1]} 7. Ba4 {[%clk 0:02:59.6]} 7... b5 {[%clk 0:03:00.7]} 8. Bb3 {[%clk
0:03:00]} 8... Nb6 {[%clk 0:03:01.3]} 9. Ng3 {[%clk 0:03:00.4]} 9... Bg6 {[%clk
0:02:59.8]} 10. O-O {[%clk 0:02:56.2]} 10... Nfxd5 {[%clk 0:02:59.9]} 11. Nc3
{[%clk 0:02:26.1]} 11... Nxc3 {[%clk 0:02:57.6]} 12. bxc3 {[%clk 0:02:27]} 12...
e6 {[%clk 0:02:58.2]} 13. f4 {[%clk 0:02:24.5]} 13... Be7 {[%clk 0:02:36.1]} 14.
f5 {[%clk 0:02:06]} 14... exf5 {[%clk 0:02:35.9]} 15. Nxf5 {[%clk 0:02:05]}
15... O-O {[%clk 0:02:35.3]} 16. Qf3 {[%clk 0:01:41.7]} 16... Bf6 {[%clk
0:02:22.7]} 17. Ba3 {[%clk 0:01:22.3]} 17... Re8 {[%clk 0:02:13.1]} 18. Rae1
{[%clk 0:01:02.4]} 18... Qd7 {[%clk 0:02:07.4]} 19. Nh6+ {[%clk 0:00:40.6]}
19... Kh8 {[%clk 0:01:57.1]} 20. Ng4 {[%clk 0:00:40.2]} 20... Rxe1 {[%clk
0:01:13.7]} 21. Rxe1 {[%clk 0:00:39.4]} 21... Re8 {[%clk 0:01:14.3]} 22. Rxe8+
{[%clk 0:00:30.1]} 22... Qxe8 {[%clk 0:01:15.2]} 23. Nxf6 {[%clk 0:00:18.7]}
23... Qe1+ {[%clk 0:01:13.9]} 24. Qf1 {[%clk 0:00:19.3]} 24... Qxf1+ {[%clk
0:01:13.2]} 25. Kxf1 {[%clk 0:00:20.2]} 25... gxf6 {[%clk 0:01:13.8]} 26. Be7
{[%clk 0:00:19.9]} 26... Kg7 {[%clk 0:00:50.1]} 27. Bd8 {[%clk 0:00:19.8]} 27...
Nc4 {[%clk 0:00:50.3]} 28. Bxc7 {[%clk 0:00:17.4]} 28... Bxc2 {[%clk 0:00:40.4]}
29. Bxc2 {[%clk 0:00:11.3]} 29... Ne3+ {[%clk 0:00:40.2]} 30. Ke2 {[%clk
0:00:11.3]} 30... Nxc2 {[%clk 0:00:40.8]} 31. Kd2 {[%clk 0:00:09.7]} 31... Na3
{[%clk 0:00:40.2]} 32. Kd3 {[%clk 0:00:08.6]} 32... Nc4 {[%clk 0:00:37.2]} 33.
a4 {[%clk 0:00:09.1]} 33... Kf8 {[%clk 0:00:37.3]} 34. axb5 {[%clk 0:00:09.4]}
34... axb5 {[%clk 0:00:38.2]} 35. Bd8 {[%clk 0:00:09.1]} 35... f5 {[%clk
0:00:36.7]} 36. d5 {[%clk 0:00:08.5]} 36... Ke8 {[%clk 0:00:37]} 37. Bf6 {[%clk
0:00:08.1]} 37... Kd7 {[%clk 0:00:37]} 38. Kd4 {[%clk 0:00:08.5]} 38... Kd6
{[%clk 0:00:31.9]} 39. Bg7 {[%clk 0:00:09]} 39... h5 {[%clk 0:00:29.8]} 40. Bf8+
{[%clk 0:00:08.9]} 40... Kd7 {[%clk 0:00:27.8]} 41. Kc5 {[%clk 0:00:09.5]} 41...
Ne3 {[%clk 0:00:28.2]} 42. g3 {[%clk 0:00:06]} 42... Nf1 {[%clk 0:00:18.4]} 43.
Kxb5 {[%clk 0:00:06.3]} 43... Nxh2 {[%clk 0:00:19]} 44. Bc5 {[%clk 0:00:04.6]}
44... Nf1 {[%clk 0:00:16.3]} 45. Bf2 {[%clk 0:00:04.9]} 45... Nd2 {[%clk
0:00:14.6]} 46. c4 {[%clk 0:00:05.1]} 46... Ne4 {[%clk 0:00:15.3]} 47. Be1
{[%clk 0:00:05.8]} 47... h4 {[%clk 0:00:09.9]} 48. gxh4 {[%clk 0:00:05.5]} 48...
f4 {[%clk 0:00:10.6]} 49. h5 {[%clk 0:00:06.1]} 49... f3 {[%clk 0:00:11.2]} 50.
h6 {[%clk 0:00:06.7]} 50... Ng5 {[%clk 0:00:10.2]} 51. c5 {[%clk 0:00:05.2]}
51... f5 {[%clk 0:00:10.7]} 52. c6+ {[%clk 0:00:04.5]} 52... Kc7 {[%clk
0:00:11.3]} 53. Kc5 {[%clk 0:00:04.8]} 53... Ne4+ {[%clk 0:00:11.9]} 54. Kd4
{[%clk 0:00:04.9]} 54... Ng5 {[%clk 0:00:11.9]} 55. Ke5 {[%clk 0:00:05.3]} 55...
Nh7 {[%clk 0:00:09.9]} 56. Kxf5 {[%clk 0:00:05.5]} 56... Kd6 {[%clk 0:00:10.8]}
57. Kg6 {[%clk 0:00:05.8]} 57... f2 {[%clk 0:00:11.1]} 58. Bxf2 {[%clk
0:00:05.8]} 1-0

[Event "Early-Titled-Tuesday-Blitz-February-06-2024"]
[Site "Chess.com"]
[Date "2024.02.06"]
[Round "10"]
[White "bogcsab"]
[Black "SahibSinghKnight"]
[Result "0-1"]
[WhiteElo "2503"]
[BlackElo "2640"]
[TimeControl "180+1"]
[EndTime "9:56:18 PST"]
[Termination "SahibSinghKnight won by checkmate"]

1. d4 {[%clk 0:03:00.9]} 1... d5 {[%clk 0:02:58.9]} 2. c4 {[%clk 0:02:59.5]}
2... e6 {[%clk 0:02:59]} 3. Nf3 {[%clk 0:02:58.5]} 3... c6 {[%clk 0:02:58.8]} 4.
Nbd2 {[%clk 0:02:56.6]} 4... f5 {[%clk 0:02:54.5]} 5. g3 {[%clk 0:02:56.3]} 5...
Nf6 {[%clk 0:02:54.5]} 6. Bg2 {[%clk 0:02:56.5]} 6... Bd6 {[%clk 0:02:53.4]} 7.
O-O {[%clk 0:02:56.1]} 7... O-O {[%clk 0:02:51.7]} 8. b3 {[%clk 0:02:56.5]} 8...
a5 {[%clk 0:02:49.2]} 9. Bb2 {[%clk 0:02:56.3]} 9... a4 {[%clk 0:02:47.8]} 10.
Ne5 {[%clk 0:02:49.2]} 10... Nbd7 {[%clk 0:02:31.9]} 11. Qc2 {[%clk 0:02:38.4]}
11... Bxe5 {[%clk 0:02:22.4]} 12. dxe5 {[%clk 0:02:38.2]} 12... Ne4 {[%clk
0:02:22.6]} 13. Nxe4 {[%clk 0:02:31.6]} 13... fxe4 {[%clk 0:02:18.7]} 14. f3
{[%clk 0:02:31.3]} 14... Qb6+ {[%clk 0:02:11.9]} 15. c5 {[%clk 0:02:19.4]} 15...
Qxc5+ {[%clk 0:01:55.2]} 16. Qxc5 {[%clk 0:02:18.5]} 16... Nxc5 {[%clk
0:01:56.1]} 17. Ba3 {[%clk 0:02:17.9]} 17... b6 {[%clk 0:01:49.4]} 18. Bxc5
{[%clk 0:02:17.7]} 18... bxc5 {[%clk 0:01:50.3]} 19. fxe4 {[%clk 0:02:17.9]}
19... Rxf1+ {[%clk 0:01:49.5]} 20. Rxf1 {[%clk 0:02:14.3]} 20... axb3 {[%clk
0:01:49.8]} 21. axb3 {[%clk 0:02:12.4]} 21... Rb8 {[%clk 0:01:42.4]} 22. exd5
{[%clk 0:01:57.4]} 22... cxd5 {[%clk 0:01:37.4]} 23. Rc1 {[%clk 0:01:56.2]}
23... Rb5 {[%clk 0:01:34.8]} 24. e4 {[%clk 0:01:46.3]} 24... d4 {[%clk
0:01:33.4]} 25. Bf1 {[%clk 0:01:45.9]} 25... Rxb3 {[%clk 0:01:27.7]} 26. Rxc5
{[%clk 0:01:45.6]} 26... Bb7 {[%clk 0:01:28]} 27. Bc4 {[%clk 0:01:39.5]} 27...
Rc3 {[%clk 0:01:24.9]} 28. Bxe6+ {[%clk 0:01:38.7]} 28... Kf8 {[%clk 0:01:23.7]}
29. Rb5 {[%clk 0:01:18.1]} 29... Bxe4 {[%clk 0:01:23.4]} 30. Rb3 {[%clk
0:00:55.2]} 30... Rc1+ {[%clk 0:01:22.5]} 31. Kf2 {[%clk 0:00:53.8]} 31... Rc2+
{[%clk 0:01:22.9]} 32. Kg1 {[%clk 0:00:51.4]} 32... d3 {[%clk 0:01:14.7]} 33.
Bg4 {[%clk 0:00:25.9]} 33... Rg2+ {[%clk 0:01:11.4]} 34. Kf1 {[%clk 0:00:24.1]}
34... Rxh2 {[%clk 0:01:11.6]} 35. Rb4 {[%clk 0:00:21.2]} 35... Bg6 {[%clk
0:00:24.6]} 36. Rb8+ {[%clk 0:00:20.2]} 36... Ke7 {[%clk 0:00:24.7]} 37. Rb7+
{[%clk 0:00:20.5]} 37... Kd8 {[%clk 0:00:23.3]} 38. Rxg7 {[%clk 0:00:14.4]}
38... d2 {[%clk 0:00:21]} 39. Rd7+ {[%clk 0:00:14.3]} 39... Ke8 {[%clk
0:00:20.1]} 40. Kg1 {[%clk 0:00:14.6]} 40... Re2 {[%clk 0:00:11.1]} 41. Bxe2
{[%clk 0:00:13.2]} 41... Kxd7 {[%clk 0:00:11.6]} 42. Kf2 {[%clk 0:00:12.5]}
42... Bc2 {[%clk 0:00:10.6]} 43. Ke3 {[%clk 0:00:11.9]} 43... d1=Q {[%clk
0:00:10.6]} 44. Bxd1 {[%clk 0:00:12.4]} 44... Bxd1 {[%clk 0:00:11.5]} 45. Kf4
{[%clk 0:00:12.1]} 45... Ke6 {[%clk 0:00:11.9]} 46. g4 {[%clk 0:00:12.2]} 46...
Bc2 {[%clk 0:00:12.3]} 47. Kg5 {[%clk 0:00:12.2]} 47... Kxe5 {[%clk 0:00:12.1]}
48. Kh6 {[%clk 0:00:10.2]} 48... Kf4 {[%clk 0:00:12.2]} 49. g5 {[%clk
0:00:10.7]} 49... Kg4 {[%clk 0:00:12.2]} 50. Kg7 {[%clk 0:00:07.1]} 50... Kxg5
{[%clk 0:00:12.2]} 51. Kf7 {[%clk 0:00:06.1]} 51... h5 {[%clk 0:00:13.1]} 52.
Ke6 {[%clk 0:00:06.5]} 52... h4 {[%clk 0:00:14]} 53. Ke5 {[%clk 0:00:07.2]}
53... h3 {[%clk 0:00:14.9]} 54. Kd4 {[%clk 0:00:07.8]} 54... h2 {[%clk
0:00:15.8]} 55. Ke3 {[%clk 0:00:08.5]} 55... h1=Q {[%clk 0:00:16.7]} 56. Kd2
{[%clk 0:00:09.1]} 56... Qd1+ {[%clk 0:00:16.6]} 57. Kc3 {[%clk 0:00:09.7]}
57... Be4 {[%clk 0:00:16.7]} 58. Kb4 {[%clk 0:00:10.3]} 58... Qd4+ {[%clk
0:00:16.9]} 59. Kb3 {[%clk 0:00:10.3]} 59... Qc5 {[%clk 0:00:17.1]} 60. Ka4
{[%clk 0:00:10.3]} 60... Bc2# {[%clk 0:00:16.2]} 0-1

[Event "Early-Titled-Tuesday-Blitz-February-06-2024"]
[Site "Chess.com"]
[Date "2024.02.06"]
[Round "10"]
[White "viktorskliarov"]
[Black "AttilaTurzo"]
[Result "0-1"]
[WhiteElo "2614"]
[BlackElo "2480"]
[TimeControl "180+1"]
[EndTime "9:56:23 PST"]
[Termination "AttilaTurzo won by resignation"]

1. e4 {[%clk 0:03:00.9]} 1... c5 {[%clk 0:02:59.4]} 2. Nf3 {[%clk 0:03:00.7]}
2... d6 {[%clk 0:02:59.9]} 3. d4 {[%clk 0:03:00.6]} 3... cxd4 {[%clk 0:03:00.8]}
4. Qxd4 {[%clk 0:03:01.1]} 4... a6 {[%clk 0:02:49.5]} 5. Be3 {[%clk 0:03:00.1]}
5... Nf6 {[%clk 0:02:47.1]} 6. Nc3 {[%clk 0:02:59.9]} 6... e5 {[%clk 0:02:44.5]}
7. Qd2 {[%clk 0:02:55.2]} 7... h6 {[%clk 0:02:44.8]} 8. Bc4 {[%clk 0:02:39.1]}
8... Be7 {[%clk 0:02:42.6]} 9. h3 {[%clk 0:02:15.6]} 9... Be6 {[%clk 0:02:41.6]}
10. Bb3 {[%clk 0:01:55.3]} 10... Nc6 {[%clk 0:02:41.2]} 11. Rd1 {[%clk
0:01:47.5]} 11... Qc7 {[%clk 0:02:33.1]} 12. Nd5 {[%clk 0:01:21.4]} 12... Bxd5
{[%clk 0:02:21.9]} 13. exd5 {[%clk 0:01:21]} 13... Nb8 {[%clk 0:02:17.6]} 14.
Nxe5 {[%clk 0:01:17.4]} 14... dxe5 {[%clk 0:01:55.3]} 15. d6 {[%clk 0:01:17.1]}
15... Bxd6 {[%clk 0:01:54.6]} 16. Qxd6 {[%clk 0:01:17.7]} 16... Qxd6 {[%clk
0:01:54.3]} 17. Rxd6 {[%clk 0:01:18.6]} 17... Nbd7 {[%clk 0:01:43.3]} 18. Ke2
{[%clk 0:01:12.7]} 18... Ke7 {[%clk 0:01:43.4]} 19. Rhd1 {[%clk 0:01:09.9]}
19... Rhc8 {[%clk 0:01:39.3]} 20. c3 {[%clk 0:00:50.4]} 20... Nc5 {[%clk
0:01:35.3]} 21. Bc2 {[%clk 0:00:47.7]} 21... Rc7 {[%clk 0:01:28.7]} 22. f3
{[%clk 0:00:33]} 22... Rac8 {[%clk 0:01:23.8]} 23. g4 {[%clk 0:00:29.7]} 23...
Rc6 {[%clk 0:01:21.2]} 24. Rxc6 {[%clk 0:00:21.6]} 24... Rxc6 {[%clk 0:01:21]}
25. h4 {[%clk 0:00:22.3]} 25... Ne6 {[%clk 0:01:01.8]} 26. g5 {[%clk 0:00:22.1]}
26... hxg5 {[%clk 0:01:01.8]} 27. hxg5 {[%clk 0:00:23]} 27... Nh5 {[%clk
0:00:59.5]} 28. Kf2 {[%clk 0:00:16.4]} 28... Nhf4 {[%clk 0:00:53.5]} 29. Be4
{[%clk 0:00:15.1]} 29... Rc8 {[%clk 0:00:47.7]} 30. Bxf4 {[%clk 0:00:05.8]}
30... Nxf4 {[%clk 0:00:35.6]} 31. Rd2 {[%clk 0:00:05.4]} 31... Rc7 {[%clk
0:00:33.6]} 32. Ke3 {[%clk 0:00:05.1]} 32... Ne6 {[%clk 0:00:31.7]} 33. g6
{[%clk 0:00:04.9]} 33... f6 {[%clk 0:00:22.9]} 34. Bf5 {[%clk 0:00:04.6]} 34...
Nc5 {[%clk 0:00:21]} 35. b3 {[%clk 0:00:03.7]} 35... a5 {[%clk 0:00:20.5]} 36.
c4 {[%clk 0:00:03.6]} 36... b6 {[%clk 0:00:19.7]} 37. Rd5 {[%clk 0:00:03.8]}
37... Rc6 {[%clk 0:00:18.9]} 38. f4 {[%clk 0:00:03.6]} 38... Rd6 {[%clk
0:00:17.3]} 39. fxe5 {[%clk 0:00:02.6]} 39... Rxd5 {[%clk 0:00:17.3]} 40. cxd5
{[%clk 0:00:02.9]} 40... fxe5 {[%clk 0:00:17.6]} 41. Kf3 {[%clk 0:00:02.6]}
41... Nb7 {[%clk 0:00:15]} 42. Ke4 {[%clk 0:00:02.7]} 42... Kf6 {[%clk
0:00:15.1]} 43. Be6 {[%clk 0:00:02.8]} 43... Nd6+ {[%clk 0:00:15]} 44. Ke3
{[%clk 0:00:02.9]} 44... Kxg6 {[%clk 0:00:15.3]} 45. a3 {[%clk 0:00:03.5]} 45...
Kf6 {[%clk 0:00:14.8]} 46. Kd3 {[%clk 0:00:03.7]} 46... Kg5 {[%clk 0:00:13.6]}
47. b4 {[%clk 0:00:04.1]} 47... axb4 {[%clk 0:00:13.3]} 48. axb4 {[%clk
0:00:05]} 48... Kf4 {[%clk 0:00:13.6]} 49. Ke2 {[%clk 0:00:05.5]} 49... g5
{[%clk 0:00:13.9]} 50. Kf2 {[%clk 0:00:05.7]} 50... g4 {[%clk 0:00:13.7]} 51.
Ke2 {[%clk 0:00:05.9]} 51... g3 {[%clk 0:00:14]} 52. Bh3 {[%clk 0:00:06]} 52...
e4 {[%clk 0:00:10]} 53. Bg2 {[%clk 0:00:05.5]} 53... Ke5 {[%clk 0:00:09.9]} 54.
Ke3 {[%clk 0:00:06]} 54... Nf5+ {[%clk 0:00:09.5]} 55. Ke2 {[%clk 0:00:06.6]}
55... Kxd5 {[%clk 0:00:09.7]} 56. Bh3 {[%clk 0:00:07.2]} 56... Nh4 {[%clk
0:00:07.4]} 57. Bd7 {[%clk 0:00:05.6]} 57... g2 {[%clk 0:00:07.1]} 58. Kf2
{[%clk 0:00:05.6]} 58... e3+ {[%clk 0:00:07.4]} 59. Kg1 {[%clk 0:00:06.1]} 59...
e2 {[%clk 0:00:07.3]} 0-1

[Event "Early-Titled-Tuesday-Blitz-February-06-2024"]
[Site "Chess.com"]
[Date "2024.02.06"]
[Round "10"]
[White "LileKoridze"]
[Black "RobertJFischer71"]
[Result "1-0"]
[WhiteElo "2433"]
[BlackElo "2574"]
[TimeControl "180+1"]
[EndTime "9:56:24 PST"]
[Termination "LileKoridze won by resignation"]

1. d4 {[%clk 0:03:00.9]} 1... d5 {[%clk 0:02:59.5]} 2. c4 {[%clk 0:02:53.6]}
2... c6 {[%clk 0:02:59.6]} 3. cxd5 {[%clk 0:02:51.7]} 3... cxd5 {[%clk
0:03:00.5]} 4. Nf3 {[%clk 0:02:50.7]} 4... Nf6 {[%clk 0:03:00.6]} 5. Nc3 {[%clk
0:02:50.5]} 5... Nc6 {[%clk 0:03:01.1]} 6. Bf4 {[%clk 0:02:50.6]} 6... a6 {[%clk
0:03:01]} 7. e3 {[%clk 0:02:49.8]} 7... Bg4 {[%clk 0:03:00.3]} 8. Be2 {[%clk
0:02:49.9]} 8... Bxf3 {[%clk 0:02:47.8]} 9. Bxf3 {[%clk 0:02:48.9]} 9... e6
{[%clk 0:02:48.4]} 10. O-O {[%clk 0:02:48.9]} 10... Bd6 {[%clk 0:02:47.6]} 11.
Bxd6 {[%clk 0:02:48.5]} 11... Qxd6 {[%clk 0:02:48.5]} 12. h3 {[%clk 0:02:48.2]}
12... O-O {[%clk 0:02:48.4]} 13. Qd2 {[%clk 0:02:48.1]} 13... b5 {[%clk
0:02:45.7]} 14. a3 {[%clk 0:02:48.1]} 14... Rac8 {[%clk 0:02:45.5]} 15. Rac1
{[%clk 0:02:47.9]} 15... b4 {[%clk 0:02:38.1]} 16. Na4 {[%clk 0:02:36.3]} 16...
bxa3 {[%clk 0:02:36.1]} 17. bxa3 {[%clk 0:02:36.5]} 17... Qxa3 {[%clk
0:02:30.3]} 18. Nc5 {[%clk 0:02:36.1]} 18... a5 {[%clk 0:02:11.2]} 19. Nb7
{[%clk 0:02:34.9]} 19... Qb4 {[%clk 0:02:02.9]} 20. Qxb4 {[%clk 0:02:06.6]}
20... axb4 {[%clk 0:01:51.1]} 21. Nd6 {[%clk 0:01:58.6]} 21... Rc7 {[%clk
0:01:51.2]} 22. Rc5 {[%clk 0:01:58.8]} 22... b3 {[%clk 0:01:45]} 23. Rb1 {[%clk
0:01:52.7]} 23... Rb8 {[%clk 0:01:42.2]} 24. Rc3 {[%clk 0:01:47.5]} 24... Kf8
{[%clk 0:01:22.7]} 25. Rcxb3 {[%clk 0:01:46.1]} 25... Rxb3 {[%clk 0:01:23]} 26.
Rxb3 {[%clk 0:01:47]} 26... Ke7 {[%clk 0:01:23.5]} 27. Nb5 {[%clk 0:01:44.5]}
27... Rb7 {[%clk 0:01:23.5]} 28. Be2 {[%clk 0:01:43.9]} 28... Ne8 {[%clk
0:01:15.2]} 29. Ra3 {[%clk 0:01:42.7]} 29... g6 {[%clk 0:01:07.2]} 30. Ra8
{[%clk 0:01:39.1]} 30... h5 {[%clk 0:01:05.7]} 31. Rxe8+ {[%clk 0:01:38.2]}
31... Kxe8 {[%clk 0:01:03]} 32. Nd6+ {[%clk 0:01:37.8]} 32... Ke7 {[%clk
0:01:01.5]} 33. Nxb7 {[%clk 0:01:38.7]} 33... e5 {[%clk 0:01:00.3]} 34. dxe5
{[%clk 0:01:37.1]} 34... Nxe5 {[%clk 0:01:01.2]} 35. Nc5 {[%clk 0:01:36.8]}
35... Nc6 {[%clk 0:00:57.7]} 36. Bf3 {[%clk 0:01:33.4]} 36... Kd6 {[%clk
0:00:53.5]} 37. Nd3 {[%clk 0:01:33]} 37... Ne7 {[%clk 0:00:43.9]} 38. Kf1 {[%clk
0:01:31.2]} 38... Nf5 {[%clk 0:00:39.8]} 39. Nf4 {[%clk 0:01:31]} 39... d4
{[%clk 0:00:37.2]} 40. exd4 {[%clk 0:01:29.2]} 40... Nxd4 {[%clk 0:00:38]} 41.
Bd1 {[%clk 0:01:28.8]} 41... Ke5 {[%clk 0:00:35.9]} 42. g3 {[%clk 0:01:22.6]}
42... h4 {[%clk 0:00:27.5]} 43. Kg2 {[%clk 0:01:22.4]} 43... hxg3 {[%clk
0:00:25.9]} 44. fxg3 {[%clk 0:01:22.5]} 44... Kf6 {[%clk 0:00:24.6]} 45. Ne2
{[%clk 0:01:19.7]} 45... Ne6 {[%clk 0:00:20.2]} 46. Bb3 {[%clk 0:01:17.1]} 46...
Nc5 {[%clk 0:00:19.4]} 47. Bc4 {[%clk 0:01:15.4]} 47... Ne4 {[%clk 0:00:18.4]}
48. Nf4 {[%clk 0:01:15.2]} 48... Nd6 {[%clk 0:00:16.4]} 49. Bb3 {[%clk
0:01:14.9]} 49... Kg7 {[%clk 0:00:16.6]} 50. Nd3 {[%clk 0:01:14]} 50... Nf5
{[%clk 0:00:16.9]} 51. Ne5 {[%clk 0:01:13.6]} 51... Nd6 {[%clk 0:00:17.2]} 52.
Nxf7 {[%clk 0:00:41.6]} 52... Nxf7 {[%clk 0:00:16.3]} 53. Bxf7 {[%clk
0:00:42.5]} 53... Kxf7 {[%clk 0:00:17.2]} 54. Kf3 {[%clk 0:00:43.1]} 54... Kf6
{[%clk 0:00:14.4]} 55. Kg4 {[%clk 0:00:43.1]} 55... Kf7 {[%clk 0:00:11.6]} 56.
Kg5 {[%clk 0:00:42.3]} 56... Kg7 {[%clk 0:00:11.9]} 57. h4 {[%clk 0:00:42.6]}
57... Kf7 {[%clk 0:00:04.3]} 58. h5 {[%clk 0:00:39.7]} 58... gxh5 {[%clk
0:00:03.7]} 59. Kxh5 {[%clk 0:00:39.7]} 59... Kg7 {[%clk 0:00:03.3]} 60. Kg5
{[%clk 0:00:40]} 60... Kh7 {[%clk 0:00:03.1]} 61. Kf6 {[%clk 0:00:39.9]} 61...
Kg8 {[%clk 0:00:03.2]} 62. g4 {[%clk 0:00:39.9]} 62... Kf8 {[%clk 0:00:03.4]}
63. Kg6 {[%clk 0:00:40.3]} 63... Kg8 {[%clk 0:00:03.8]} 64. g5 {[%clk
0:00:40.9]} 64... Kh8 {[%clk 0:00:02.6]} 65. Kf7 {[%clk 0:00:40.7]} 1-0

[Event "Early-Titled-Tuesday-Blitz-February-06-2024"]
[Site "Chess.com"]
[Date "2024.02.06"]
[Round "10"]
[White "malakismayil"]
[Black "Sadykov_Ramil"]
[Result "0-1"]
[WhiteElo "2500"]
[BlackElo "2599"]
[TimeControl "180+1"]
[EndTime "9:56:24 PST"]
[Termination "Sadykov_Ramil won on time"]

1. e4 {[%clk 0:03:00.9]} 1... c5 {[%clk 0:02:59.1]} 2. Nf3 {[%clk 0:02:58.3]}
2... e6 {[%clk 0:02:59.6]} 3. c3 {[%clk 0:02:58.2]} 3... Nf6 {[%clk 0:02:57.5]}
4. e5 {[%clk 0:02:58.4]} 4... Nd5 {[%clk 0:02:58.2]} 5. g3 {[%clk 0:02:57.2]}
5... d6 {[%clk 0:02:54.2]} 6. exd6 {[%clk 0:02:56.8]} 6... Bxd6 {[%clk
0:02:47.1]} 7. Bg2 {[%clk 0:02:57.2]} 7... Nc6 {[%clk 0:02:47.7]} 8. O-O {[%clk
0:02:57.5]} 8... O-O {[%clk 0:02:48.3]} 9. d4 {[%clk 0:02:58.1]} 9... cxd4
{[%clk 0:02:45.4]} 10. cxd4 {[%clk 0:02:57]} 10... b6 {[%clk 0:02:40.9]} 11. Nc3
{[%clk 0:02:57]} 11... Nxc3 {[%clk 0:02:31.2]} 12. bxc3 {[%clk 0:02:57.9]} 12...
Ba6 {[%clk 0:02:31.3]} 13. Re1 {[%clk 0:02:55.1]} 13... Na5 {[%clk 0:02:31.8]}
14. Bd2 {[%clk 0:02:26.7]} 14... Rc8 {[%clk 0:02:30]} 15. Qc2 {[%clk 0:02:24.4]}
15... Qc7 {[%clk 0:02:22.9]} 16. Ng5 {[%clk 0:02:22.8]} 16... g6 {[%clk
0:02:22.4]} 17. Ne4 {[%clk 0:02:21.2]} 17... Bb7 {[%clk 0:01:56]} 18. h4 {[%clk
0:01:39.8]} 18... Bxe4 {[%clk 0:01:35.9]} 19. Qxe4 {[%clk 0:01:40.7]} 19... Nc4
{[%clk 0:01:32.6]} 20. Bh6 {[%clk 0:01:38.6]} 20... Rfe8 {[%clk 0:01:31.3]} 21.
h5 {[%clk 0:01:35.9]} 21... Na3 {[%clk 0:01:18.4]} 22. Rac1 {[%clk 0:01:32.1]}
22... b5 {[%clk 0:01:10.5]} 23. hxg6 {[%clk 0:01:24.4]} 23... hxg6 {[%clk
0:01:11.4]} 24. Bg5 {[%clk 0:01:17.7]} 24... Bf8 {[%clk 0:01:06]} 25. Bf4 {[%clk
0:00:59.3]} 25... Qa5 {[%clk 0:00:46.5]} 26. Qd3 {[%clk 0:00:42.9]} 26... Bg7
{[%clk 0:00:44.7]} 27. Bd6 {[%clk 0:00:23.2]} 27... Nc4 {[%clk 0:00:39.7]} 28.
Bb4 {[%clk 0:00:21.6]} 28... Qc7 {[%clk 0:00:30.4]} 29. Bc5 {[%clk 0:00:09.6]}
29... Red8 {[%clk 0:00:28.8]} 30. Qf3 {[%clk 0:00:09.5]} 30... Nb2 {[%clk
0:00:22]} 31. Re2 {[%clk 0:00:05.7]} 31... Na4 {[%clk 0:00:21.8]} 32. Ba3 {[%clk
0:00:03]} 32... a5 {[%clk 0:00:14.4]} 33. Rec2 {[%clk 0:00:03]} 33... Bf8 {[%clk
0:00:13.1]} 34. Bxf8 {[%clk 0:00:02.5]} 34... Kxf8 {[%clk 0:00:14]} 35. Qd3
{[%clk 0:00:02.7]} 35... Rb8 {[%clk 0:00:10.2]} 36. Bf1 {[%clk 0:00:03.1]} 36...
Kg7 {[%clk 0:00:09.7]} 37. Qe4 {[%clk 0:00:03.2]} 37... Qd6 {[%clk 0:00:09.8]}
38. Qf3 {[%clk 0:00:02.9]} 38... Rdc8 {[%clk 0:00:09.7]} 39. Rd1 {[%clk
0:00:02.8]} 39... Rc7 {[%clk 0:00:09.3]} 40. c4 {[%clk 0:00:03.2]} 40... bxc4
{[%clk 0:00:08.2]} 41. Rxc4 {[%clk 0:00:04.1]} 41... Rxc4 {[%clk 0:00:07.8]} 42.
Bxc4 {[%clk 0:00:04.9]} 42... Nb2 {[%clk 0:00:08]} 43. Rc1 {[%clk 0:00:05.4]}
43... Nxc4 {[%clk 0:00:05.5]} 44. Rxc4 {[%clk 0:00:06.3]} 44... Rb4 {[%clk
0:00:03.4]} 45. Rxb4 {[%clk 0:00:04.6]} 45... Qxb4 {[%clk 0:00:04.3]} 46. Qe3
{[%clk 0:00:02.8]} 46... Qb1+ {[%clk 0:00:04]} 47. Kg2 {[%clk 0:00:03.3]} 47...
Qxa2 {[%clk 0:00:04.6]} 48. Qe5+ {[%clk 0:00:04.1]} 48... Kh7 {[%clk 0:00:04.4]}
49. Qf6 {[%clk 0:00:03.6]} 49... Qd5+ {[%clk 0:00:05]} 50. Kh2 {[%clk
0:00:03.6]} 50... Qf5 {[%clk 0:00:05.3]} 51. Qd8 {[%clk 0:00:03.4]} 51... Qxf2+
{[%clk 0:00:05.3]} 52. Kh3 {[%clk 0:00:03.5]} 52... a4 {[%clk 0:00:05.6]} 53.
Qd7 {[%clk 0:00:03]} 53... a3 {[%clk 0:00:04.5]} 54. Qa7 {[%clk 0:00:02.7]}
54... a2 {[%clk 0:00:04.5]} 55. d5 {[%clk 0:00:02.3]} 55... Qxa7 {[%clk
0:00:03.4]} 0-1